Cogmind - Beta 11.2 @@@ ROGUE MODE // 2022.12.25 @ 10:30:23 // Winter2022/Polymind Player: ILikeVoltron Result: Core destroyed Performance ------------- Evolutions (2) 1000 Regions Visited (5) 1000 Robots Destroyed (9) 45 Value Destroyed (287) 287 Prototype IDs (0) 0 Alien Tech Used (0) 0 Bonus (2759) 2759 TOTAL SCORE: 4691 Bonus ------- Polymind Skill 2759 Cogmind --------- Core Integrity 0/550 Matter 0/0 Energy 34/100 System Corruption 3% Temperature Cool (0) Movement Core (50) Location -8/Materials Parts ------- > --- POWER (1) -------- (None) > --- PROPULSION (2) --- (None) > --- UTILITY (3) ------ (None) > --- WEAPON (2) ------- (None) > --- INVENTORY (0) ---- (None) Peak State ------------ > --- POWER ------------ Improved Ion Engine > --- PROPULSION ------- Light Treads Light Treads > --- UTILITY ---------- Heat Sink Heat Sink Light Armor Plating > --- WEAPON ----------- Beam Rifle Heavy Assault Rifle > --- INVENTORY -------- (None) [Rating: 11] Favorites ----------- Power Light Ion Engine Engine Light Ion Engine Propulsion Flight Unit Treads Light Treads Wheel Wheel Flight Unit Flight Unit Utility Heat Sink Device Heat Sink Storage Medium Matter Pod Protection Light Armor Plating Weapon Light Assault Rifle Energy Gun Beam Rifle Ballistic Gun Light Assault Rifle Build | -11 -10 -10 -10 -9 -8 ------- Run | Scr Mat Min Exi Min Mat Slots Evolved . | . . . . . . Power . | . . . . . . Propulsion . | . . . . . . Utility . | . . . . . . Weapon . | . . . . . . Parts Attached . | . . . . . . Power . | . . . . . . Engine . | . . . . . . Core . | . . . . . . Reactor . | . . . . . . Propulsion . | . . . . . . Treads . | . . . . . . Leg . | . . . . . . Wheel . | . . . . . . Hover . | . . . . . . Flight . | . . . . . . Utility . | . . . . . . Device . | . . . . . . Storage . | . . . . . . Processor . | . . . . . . Hackware . | . . . . . . Protection . | . . . . . . Artifact . | . . . . . . Weapon . | . . . . . . Energy Gun . | . . . . . . Energy Cannon . | . . . . . . Ballistic Gun . | . . . . . . Ballistic Cannon . | . . . . . . Launcher . | . . . . . . Special Weapon . | . . . . . . Impact Weapon . | . . . . . . Slashing Weapon . | . . . . . . Piercing Weapon . | . . . . . . Special Melee Weapon . | . . . . . . Unidentified Prototypes . | . . . . . . Parts Lost 11 | . . . . . 11 Power 3 | . . . . . 3 Propulsion 3 | . . . . . 3 Utility 3 | . . . . . 3 Weapon 2 | . . . . . 2 Highest Loss Streak 6 | . . . . . 6 To Critical Strikes . | . . . . . . Average Slot Usage (%) 88 | . 54 100 100 100 88 Engine 17 | . 13 25 25 25 12 Treads 9 | . . . . . 18 Flight 24 | . 27 50 50 50 5 Device 9 | . . . . . 18 Protection 4 | . . . . . 8 Energy Gun 4 | . . . . . 8 Ballistic Gun 17 | . 13 25 25 25 13 Naked Turns 80 | . 43 . . . 37 Heaviest Build 18 | . 4 4 4 4 18 Greatest Support 40 | 3 8 8 8 8 40 Greatest Overweight (x) . | . . . . . . Average Overweight (x) . | . . . . . . Largest Inventory Capacity 1 | . . . . . 1 Average Capacity . | . . . . . . Most Carried . | . . . . . . Average Carried . | . . . . . . Final Capacity . | . . . . . . Final Carried . | . . . . . . Class Distribution -------------------- 52% | Swarmer 37% | Sentry 8% | Cogmind Dominant Class ---------------- Swarmer | -10/Materials Swarmer | -10/Mines Swarmer | -10/Exiles Swarmer | -9/Mines Sentry | -8/Materials Resources | -11 -10 -10 -10 -9 -8 ----------- Run | Scr Mat Min Exi Min Mat Matter Collected 78 | . 5 . . . 73 Remotely . | . . . . . . Salvage Created 407 | . 37 . . . 370 Parts 21 | . 4 . . . 17 Haulers Intercepted . | . . . . . . Recyclers Shooed . | . . . . . . Parts Field Recycled . | . . . . . . Retrieved Matter . | . . . . . . Parts Self-Destructed . | . . . . . . Prevented . | . . . . . . Kills | -11 -10 -10 -10 -9 -8 ------- Run | Scr Mat Min Exi Min Mat Combat Hostiles Destroyed 7 | . 2 . . . 5 Guns 7 | . 2 . . . 5 Classes Destroyed 5 | . 1 . . . 4 Mechanic 1 | . . . . . 1 Watcher 1 | . . . . . 1 Swarmer 2 | . 2 . . . . Grunt 2 | . . . . . 2 Sentry 3 | . . . . . 3 Best Kill Streak 3 | . 2 . . . 3 Combat Bots Only 3 | . 2 . . . 3 Max Kills in Single Turn 2 | . 1 . . . 2 Gunslinging 1 | . . . . . 1 Exploded . | . . . . . . Melee . | . . . . . . Uniques/NPCs Destroyed . | . . . . . . Combat | -11 -10 -10 -10 -9 -8 -------- Run | Scr Mat Min Exi Min Mat Damage Taken 1737 | . 13 . . . 1724 Core 566 | . 7 . . . 559 Absorbed by Shields . | . . . . . . Core Remaining (%) 98 | 100 . . . 97 . Volleys Fired 51 | . 4 . . . 47 Largest 2 | . 1 . . . 2 Hottest 79 | . 20 . . . 79 Shots Fired 63 | . 4 . . . 59 Gun 63 | . 4 . . . 59 Cannon . | . . . . . . Launcher . | . . . . . . Special . | . . . . . . Kinetic 43 | . 4 . . . 39 Thermal 20 | . . . . . 20 Explosive . | . . . . . . Electromagnetic . | . . . . . . Robot Hit Streak 9 | . 2 . . . 9 Robot Miss Streak 3 | . 1 . . . 3 Penetration Max . | . . . . . . Secondary Targets 1 | . . . . . 1 Max Gunslinging Chain 1 | . . . . . 1 Shots Hit Robots 43 | . 3 . . . 40 Core Hits 18 | . 3 . . . 15 Critical Kills . | . . . . . . Critical Parts Destroyed . | . . . . . . Critical Strikes 5 | . . . . . 5 Burn 5 | . . . . . 5 Melee Attacks . | . . . . . . Impact . | . . . . . . Slashing . | . . . . . . Piercing . | . . . . . . Sneak Attacks . | . . . . . . Combat Hostiles . | . . . . . . Follow-up Attacks . | . . . . . . Damage Inflicted 681 | . 25 . . . 656 Guns 600 | . 25 . . . 575 Cannons . | . . . . . . Explosions . | . . . . . . Melee . | . . . . . . Ramming 81 | . . . . . 81 Kinetic 327 | . 25 . . . 302 Thermal 273 | . . . . . 273 Explosive . | . . . . . . Electromagnetic . | . . . . . . Impact . | . . . . . . Slashing . | . . . . . . Piercing . | . . . . . . Highest Corruption 3 | . . . . . 3 Average Corruption 3 | . . . . . 3 Corruption Purged . | . . . . . . Corruption Blocked . | . . . . . . Effects 6 | . . . . . 6 Message Errors 2 | . . . . . 2 Heat Flow Errors 2 | . . . . . 2 Energy Discharges 1 | . . . . . 1 Data Loss (major) 1 | . . . . . 1 Overload Shots . | . . . . . . Overflow Damage . | . . . . . . Projectiles . | . . . . . . Explosions . | . . . . . . Melee . | . . . . . . Knockbacks . | . . . . . . Impact . | . . . . . . Kinetic . | . . . . . . Secondary . | . . . . . . Self-Inflicted Damage 69 | . . . . . 69 Shots . | . . . . . . Rammed 5 | . . . . . 5 Targets Rammed 5 | . . . . . 5 Kicked . | . . . . . . Crushed . | . . . . . . Highest Temperature 259 | . 18 . . . 259 Average Temperature 50 | . 10 . . . 52 Received Heat Transfer 576 | . . . . . 576 Siege Activations . | . . . . . . Robots Corrupted . | . . . . . . Combat Hostiles . | . . . . . . Parts Fried . | . . . . . . Impact Corruptions . | . . . . . . Robots Melted . | . . . . . . Combat Hostiles . | . . . . . . Parts Melted 4 | . . . . . 4 Heat Transferred 1036 | . . . . . 1036 Parts Sabotaged . | . . . . . . Parts Stolen . | . . . . . . Parts Stripped . | . . . . . . Power Chain Reactions . | . . . . . . Missiles Intercepted . | . . . . . . Alert | -11 -10 -10 -10 -9 -8 ------- Run | Scr Mat Min Exi Min Mat Peak Influence 191 | . 132 51 . . 191 Initial 51 | . . 51 . . . Average 75 | . 66 51 . . 92 Maximum Alert Level . | . . . . . . Low Security (%) 100 | 100 100 100 . 100 100 Level 1 . | . . . . . . Level 2 . | . . . . . . Level 3 . | . . . . . . Level 4 . | . . . . . . Level 5 . | . . . . . . High Security . | . . . . . . Max Security . | . . . . . . Squads Dispatched 2 | . . . . . 2 Investigation 1 | . . . . . 1 Extermination . | . . . . . . Reinforcement . | . . . . . . Assault . | . . . . . . Garrison 1 | . . . . . 1 Intercept . | . . . . . . Searches Triggered . | . . . . . . Construction Impeded . | . . . . . . Haulers Reinforced . | . . . . . . Active Scanning Responses . | . . . . . . Cargo Convoy Interrupts . | . . . . . . Stealth | -11 -10 -10 -10 -9 -8 --------- Run | Scr Mat Min Exi Min Mat Distress Signals 3 | . 1 . . . 2 Communications Jammed . | . . . . . . Distress Signals . | . . . . . . Times Spotted 36 | . 8 . . . 28 Peak Tracking Total 8 | . 5 . . . 8 Tactical Retreats 3 | . 1 . . . 2 Traps | -11 -10 -10 -10 -9 -8 ------- Run | Scr Mat Min Exi Min Mat Traps Triggered 1 | . . . . . 1 Indirectly . | . . . . . . Trap Hack Attempts . | . . . . . . Triggered . | . . . . . . Disarmed . | . . . . . . Reprogrammed . | . . . . . . Reused . | . . . . . . Traps Extracted . | . . . . . . Installed . | . . . . . . Triggered . | . . . . . . Machines | -11 -10 -10 -10 -9 -8 ---------- Run | Scr Mat Min Exi Min Mat Machines Disabled . | . . . . . . Max in Single Turn . | . . . . . . Machines Sabotaged . | . . . . . . Garrisons Compromised . | . . . . . . Overloaded Fab Kills . | . . . . . . Hacking | -11 -10 -10 -10 -9 -8 --------- Run | Scr Mat Min Exi Min Mat Machines Accessed 8 | . 3 . 4 . 1 Terminals 3 | . 3 . . . . Fabricators . | . . . . . . Repair Stations . | . . . . . . Recycling Units 1 | . . . . . 1 Scanalyzers . | . . . . . . Garrison Access . | . . . . . . Total Hacks 10 | . 5 . 4 . 1 Successful 7 | . 2 . 4 . 1 Failed 3 | . 3 . . . . Catastrophic . | . . . . . . Database Lockouts . | . . . . . . Manual . | . . . . . . Terminals 5 | . 5 . . . . Fabricators . | . . . . . . Repair Stations . | . . . . . . Recycling Units 1 | . . . . . 1 Scanalyzers . | . . . . . . Garrison Access . | . . . . . . Terminal Hacks 6 | . 2 . 4 . . Record 4 | . . . 4 . . Branch Access Points 1 | . 1 . . . . Emergency Access Points 1 | . 1 . . . . Fabricator Hacks . | . . . . . . Repair Station Hacks . | . . . . . . Recycling Unit Hacks 1 | . . . . . 1 Report Inventory 1 | . . . . . 1 Scanalyzer . | . . . . . . Garrison Access Hacks . | . . . . . . Unauthorized Hacks . | . . . . . . Terminals . | . . . . . . Fabricators . | . . . . . . Repair Stations . | . . . . . . Recycling Units . | . . . . . . Scanalyzers . | . . . . . . Garrison Access . | . . . . . . Data Cores Recovered . | . . . . . . Used . | . . . . . . Hacking Detections 2 | . 1 . . . 1 Full Trace Events . | . . . . . . Feedback Events . | . . . . . . Feedback Blocked . | . . . . . . Robot Schematics Acquired . | . . . . . . Robots Built . | . . . . . . Authchips . | . . . . . . Time . | . . . . . . Total Robot Build Rating . | . . . . . . Part Schematics Acquired . | . . . . . . Parts Built . | . . . . . . Authchips . | . . . . . . Time . | . . . . . . Total Part Build Rating . | . . . . . . Parts Repaired . | . . . . . . Time . | . . . . . . Parts Recycled . | . . . . . . Recycled Matter . | . . . . . . Retrieved Matter . | . . . . . . Retrieved Components . | . . . . . . Parts Scanalyzed . | . . . . . . Part Schematics Acquired . | . . . . . . Parts Damaged . | . . . . . . Bothacking | -11 -10 -10 -10 -9 -8 ------------ Run | Scr Mat Min Exi Min Mat Used RIF Installer . | . . . . . . Robots Hacked 3 | . 1 . . . 2 Non-combat . | . . . . . . Combat 3 | . 1 . . . 2 Robot Hacks Applied 5 | . 1 . . . 4 find_shortcuts 3 | . 1 . . . 2 find_garrison 2 | . . . . . 2 Relay Couplers Released . | . . . . . . Fabnet Peak Effective % . | . . . . . . Robots Rewired . | . . . . . . Allies Hacked . | . . . . . . Hacks Repelled . | . . . . . . Allies | -11 -10 -10 -10 -9 -8 -------- Run | Scr Mat Min Exi Min Mat Total Allies 3 | . . 3 . . . Largest Group 3 | . . 3 . . . Highest-Rated Group 40 | . . 40 . . . Highest-Rated Ally 16 | . . 16 . . . Total Orders . | . . . . . . Ally Attacks . | . . . . . . Total Damage . | . . . . . . Kills . | . . . . . . Allies Corrupted . | . . . . . . Allies Melted . | . . . . . . Intel | -11 -10 -10 -10 -9 -8 ------- Run | Scr Mat Min Exi Min Mat Robot Analysis Total 3 | . 1 . . . 2 Derelict Logs Recovered 1 | . . 1 . . . Drone Launches . | . . . . . . Drone Recoveries . | . . . . . . Exploration | -11 -10 -10 -10 -9 -8 ------------- Run | Scr Mat Min Exi Min Mat Turns Passed 966 | 7 104 62 218 73 502 Spaces Moved 1512 | 13 193 168 590 197 351 Core 151 | 13 85 . . . 53 Treads 153 | . . . . . 153 Legs . | . . . . . . Wheels 21 | . . . . . 21 Hover . | . . . . . . Flight 1187 | . 108 168 590 197 124 Fastest Speed 37 | 50 37 37 37 37 37 Average Speed 51 | 50 42 37 37 37 95 Slowest Speed 160 | 50 50 37 37 37 160 Overloaded Moves . | . . . . . . Propulsion Burnouts . | . . . . . . Robots Hopped 4 | . . . . . 4 Cave-ins Triggered . | . . . . . . Exploration Rate (%) 45 | 3 42 48 90 47 40 Regions Visited 5 Branch Regions 3 Pre-discovered Areas . | . . . . . . Known Exits Taken 1 | . 1 . . . . Unknown Exits Taken 4 | 1 . 1 1 1 . Scrap Searched 2 | . . . . 2 . Spaces Dug . | . . . . . . Terrain Destroyed . | . . . . . . Melee . | . . . . . . Projectile . | . . . . . . AOE . | . . . . . . Terrain Rammed 9 | . . . . . 9 Walls Destroyed . | . . . . . . Machines Disabled . | . . . . . . Actions | -11 -10 -10 -10 -9 -8 --------- Run | Scr Mat Min Exi Min Mat Total 1626 | 12 210 167 589 196 452 Wait 59 | . 14 . . . 45 Move 1501 | 12 192 167 589 196 345 Hop 2 | . . . . . 2 Pick Up . | . . . . . . Fast Attach . | . . . . . . Attach . | . . . . . . Detach . | . . . . . . Swap . | . . . . . . Drop . | . . . . . . Fire 51 | . 4 . . . 47 Melee . | . . . . . . Ram 10 | . . . . . 10 Kick . | . . . . . . Crush 3 | . . . . . 3 Escape Stasis . | . . . . . . Rewire . | . . . . . . Trap . | . . . . . . Miscellaneous . | . . . . . . Route ------- -11/Scrapyard -10/Materials (discovered 3 exits: [*Mat] / *Min x2) -10/Mines (discovered 2 exits: [*Mat] / *Exi) -10/Exiles (discovered 2 exits: [*Min x2]) -9/Mines -8/Materials History --------- Turn | Location | Event 1 | -11/Scrapyard | Discovered new exit (range 1) 8 | -11/Scrapyard | Entered Materials 86 | -10/Materials | Discovered new exit (range 10) 93 | -10/Materials | Identified exit to Mines 112 | -10/Materials | Entered Mines 116 | -10/Mines | Discovered new exit (range 8) 141 | -10/Mines | Learned Materials emergency access door positions 151 | -10/Mines | Assisted by bots powering up and referring to "LRC-V3" 170 | -10/Mines | Received a Mining Laser from a helpful Derelict 172 | -10/Mines | Deemed a non-threat by the Exiles lab entrance 173 | -10/Mines | Discovered new exit (range 5) 174 | -10/Mines | Entered Exiles 174 | -10/Exiles | Found Exiles lab abandoned 180 | -10/Exiles | Discovered new exit (range 15) 289 | -10/Exiles | Discovered new exit (range 14) 392 | -10/Exiles | Entered Mines 418 | -9/Mines | A weapon hastily lodged in a ceiling crevice suddenly fell to the ground 449 | -9/Mines | Discovered new exit (range 11) 465 | -9/Mines | Entered Materials 581 | -8/Materials | Lost 3 parts (1p1n1w) 872 | -8/Materials | Core integrity fell below 50% 946 | -8/Materials | Garrison activated, responded to threat 947 | -8/Materials | Lost 6 parts (1p1n3u1w) 955 | -8/Materials | Core integrity fell below 20% 967 | -8/Materials | Core destroyed Last Messages --------------- 00939_ Heat Sink broken. 00939_ Destabilizing: Short circuit. 00939_ Hvy. Assault Rifle broken. 00939_ Destabilizing: Short circuit. 00946_ M-13 Machinist suffers critical hit (Burn). 00946_ M-13 Machinist calls for garrison support. 00946_ ALERT: Activating Garrison Access M001. 00947_ System corrupted: Energy discharge (-60). 00953_ Machine Analyzer melted. 00953_ M-13 Machinist destroyed. 00959_ Y-45 Defender suffers critical hit (Burn). 00960_ Critical hit (Burn: +37). 00961_ Released control of Y-45 Defender. 00962_ Y-45 Defender heat short circuits Hvy. Assault Rifle. 00962_ Slammed into Y-45 Defender. 00966_ Slammed into Garrison Access. 00966_ Destabilizing: Core damaged (-16). 00967_ ROY2HPRYK9:AJ D>C7JQ E:L%IGV2P5KXH1K 00967_ Slammed into Garrison Access. 00967_ Destabilizing: Core damaged (-16). Map ----- +----------------------------------------------------+ | ?????????????????????# """ # #? """????????## | | ?????????????????????# # #? ????????# | | ?????????????????????##########!% #######???????# | | ??????????????????????????????# = # #??????????# | | ??????????????????????????????# #???????????# | | ??????????????????????????????# # #???????????# | | ??????????????????????????????# ###???????????## | | ??????????????????????????????# #??????????????? | | ??????????????????????????????# #??????????????? | | ??????????????????????????????# #??????????????? | | ??????????????????????????????# % #??????????????? | | ??????????????????????????????# +????????####### | | ??????????????????????????????# #????????# | | ??????????????????????????????# #????????# """ | | ??????????????????????????????# #????????# """ | | ??????????????????????????????# #????????# """ | | ??????????????????????????????# #????????# | | ???????????????????????##?????# #????????# ! [ | | ?????????????????????### ###### #????????####### | | ?????????????????????# # #??????????????? | | ?????????????????????# """ # #??????????????? | | ?????????????????????#! """ =# ########???????? | | ?????????????????????# """ [ #% =[ #???????? | | ?????????????????????# !%=Y* *%[ #???????? | | ?????????????????????# "" =!Y# =[* #???????? | | ?????????????????????# "G@ [%## ##### #???????? | | ?????????????????????# "" ## #???# #???????? | | ?????????????????????# ## #???# #?????### | | ?????????????????????###########+##### ####### | | ??????????????????????????????# # | | ??????????????????????????????# # | | ??????????????????????????????#! # | | ??????????????????????????????# / ####### | | ??????????????????????????????# * # #?????### | | ??????????????????????????????# # #???????? | | ??????????????????????????????######## #???????? | | ????????????????????????????????????? #??????? | | ???????????????????????????????????? ] ?????? | | ?????????????H????????????????????? ????? | | ?????????????????????????????????? ???? | | ?????????????????????????????????#### #####??? | | ????????????????????????????????????###+###??????? | | ?????????????????????????????????????????????????? | | ?????????????????????????????????????????????????? | | ?????????????????????????????????????????????????? | | ?????????????????????????????????????????????????? | | ?????????????????????????????????????????????????? | | ?????????????????????????????????????????????????? | | ?????????????????????????????????????????????????? | | ?????????????????????????????????????????????????? | +----------------------------------------------------+ Best States ------------- Heat Dissipation 36 Energy Generation 17 Energy Capacity 215 Matter Stores 100 Matter Capacity 100 Sight Range 16 Terrain Scan Density 10 Armor Coverage 150 Resistance: EX 50 Resistance: I 25 Evasion (%) 62 Recoil Reduction 2 Item Schematics ----------------- None Robot Schematics ------------------ None Fabricated ------------ Nothing Alien Tech Used ----------------- None Achievements -------------- Armchair Analyst Cya! Challenges ------------ None Polymind | -11 -10 -10 -10 -9 -8 ---------- Run | Scr Mat Min Exi Min Mat Robots Controlled 4 | . 1 . . . 3 Combat Hostiles 3 | . 1 . . . 2 Allies . | . . . . . . Classes Controlled 3 | . 1 . . . 2 Average Host Suspicion 63 | . 100 34 . 38 95 Unsuspicious Activity 22 | . . . . . 22 Returns to Shadow . | . . . . . . Fuzzy Dispatches . | . . . . . . Protomatter Created 16 | . . . . . 16 Used 57 | . 6 . . . 51 Decayed . | . . . . . . Highest Spend 23 | . 6 . . . 23 Top 5 Hosts by Kills: Y-45 Defender (-8/Materials: 3) S-10 Pest (-10/Materials: 2) Game ------ Seed SeismicRiotSegregator Manual? 0 Play Time 00:16:13 Cumulative 73.4 hours Start 2022.12.25 @ 10:15:46 End 2022.12.25 @ 10:30:23 Sessions 1 Manual Loads 0 Difficulty Rogue Special Mode Winter2022/Polymind Game No. 103 Rogue 99 Adventurer 0 Explorer 4 Win Type - Total 0 Types 0/0/0/0/0/0/0/0/0 Lore% 21 Gallery% 37 Achievement% 30 Wizard Run 0 Options --------- ASCII 0 Keyboard 1 Movement Arrows Keybinds 0 Fullscreen 2 Font 24/Crisp Map View 113x50 Tactical HUD 1 Map Filters NONE Filters NONE Steam 1 RUN: b1829139-27cd-4805-9609-ece6b810a619